Workbook

Sheet Planilha
A1: ESTIMATIVA DE CUSTO MAIO 2013
A2: DESCRIÇÃO DO ITEM 1 | B2: Qtde. Estimada Mensal | C2: Qtde. Estimada Anual | D2: Valor Unitário R$ | E2: Vlr. Estimado Mensal= Preços (x) Serviços (–) Desconto (R$) | F2: Vlr. Estimado Anual=
F3: Preços (x) Serviços (–) Desconto (R$) | G3: 1.0390767
A4: Assinatura Básica de voz (32 acessos) | B4: 32 | C4: 384 | D4: 5.19 | E4: =B4*D4 -> 166.08 | F4: =C4*D4 -> 1992.96
A5: Acesso à Caixa Postal | B5: 1600 | C5: 19200 | D5: 0.47 | E5: =B5*D5 -> 752 | F5: =C5*D5 -> 9024
A6: Serviço de dados para SmartPhone (20 acessos ilimitados) | B6: 20 | C6: 240 | D6: 72.73 | E6: 1454.6 | F6: 17455.2
A7: Serviço Internet Móvel 3G - com velocidade de nominal de 1MB, Hardware com 20 modens 3G com interface USB em regime de comodato. | B7: 20 | C7: 240 | D7: 103.8 | E7: 2076 | F7: 24912
A8: DESCRIÇÃO DO ITEM 2 | B8: Qtde. Min. Estimados / Mensal | C8: Qtde Min. Estimados / Ano | D8: Valor unitário R$ | E8: Resultado ao mês= | F8: Resultado ao ano=
E9: Preços (x) Serviços (–) Desconto R$ | F9: Preços x Serviços – Desconto (R$)
A10: VC1 Móvel/Móvel (mesma operadora) | B10: 4800 | C10: 57600 | D10: 0.31 | E10: =B10*D10 -> 1488 | F10: =C10*D10 -> 17856
A11: VC1 Móvel/Móvel Intra-grupo (serviço tarifa zero nacional) | B11: 32 | C11: 384 | D11: 19.22 | E11: =B11*D11 -> 615.04 | F11: =C11*D11 -> 7380.48
A12: VC1 MM - Móvel/Móvel (outras operadoras) | B12: 9600 | C12: 115200 | D12: 0.31 | E12: 2976 | F12: 35712
A13: VC1 MF - Móvel/Fixo | B13: 4800 | C13: 57600 | D13: 0.31 | E13: 1488 | F13: 17856
A14: VC1 R - Móvel/Móvel em Roaming | B14: 640 | C14: 7680 | D14: 0.31 | E14: 198.4 | F14: 2380.8
A15: VC1 R - Móvel/Fixo em Roaming | B15: 640 | C15: 7680 | D15: 0.31 | E15: 198.4 | F15: 2380.8
A16: Ferramenta de gestão on-line (32 acessos) | B16: 32 | C16: 384 | D16: 5.09 | E16: 162.88 | F16: 1954.56
A17: DSL1 - Chamadas dirigidas quando em Roaming para CN 61 a 69 | B17: 480 | C17: 5760 | D17: 0 | E17: 0 | F17: 0
A18: DSL2 - Chamadas dirigidas quando em Roaming para CN das demais localidades | B18: 1440 | C18: 17280 | D18: 0 | E18: 0 | F18: 0
A19: Adicional Deslocamento – (AD) | B19: 4800 | C19: 57600 | D19: 0 | E19: 0 | F19: 0
A20: Mensagem de texto - SMS | B20: 1600 | C20: 19200 | D20: 0.31 | E20: =B20*D20 -> 496 | F20: =C20*D20 -> 5952
A21: Mensagem de texto c/áudio e imagem - MMS | B21: 640 | C21: 7680 | D21: 0.62 | E21: =B21*D21 -> 396.8 | F21: =C21*D21 -> 4761.6
A22: DESCRIÇÃO DO ITEM 3 | B22: QUANTIDADE / ANO / EM R$
A23: Previsão para Roaming internacional | B23: 10000
A24: VALOR ESTIMADO MENSAL | B24: =SUM(E4:E7,E10:E21) -> 12468.2
A25: VALOR ESTIMADO ANUAL | B25: =SUM(F4:F7,F10:F21) -> 149618.4
A26: TOTAL DA PROPOSTA PARA O ITEM 1 e 2 (com desconto) = R$ ( ) | B26: 149618
A27: · Valores arrendodados para maior, R$ 0,40 (quarenta centavos), em relação ao valor orçado pela Operadora. ** Valor atualizado mensal de acordo com o IGP-DI
